Cogmind - Beta 17 @@@ ROGUE MODE // 2026.08.21 @ 04:14:17 Player: KURIIRI Result: Self-destructed Performance ------------- Evolutions (4) 2000 Regions Visited (7) 1400 Robots Destroyed (62) 310 Value Destroyed (1514) 1514 Prototype IDs (14) 280 Alien Tech Used (0) 0 Bonus (2820) 2820 TOTAL SCORE: 8324 Bonus ------- Follower Combat Kills 204 Delivered SUBCON Basin 2000 Registered with UFD 300 Met Optimus in HQ 500 Friendly Fire -184 Cogmind --------- Core Integrity 807/850 Matter 204/300 Energy 150/150 System Corruption 2% Temperature Cool (0) Movement Hovering (106) Ox1 Location -6/Factory Parts ------- > --- POWER (1) -------- Micro Nuclear Core > --- PROPULSION (4) --- Improved Gravmag System Improved Gravmag System > --- UTILITY (8) ------ Enhanced Optical Array Advanced Sensor Array Improved Signal Interpreter Improved Medium Armor Plating Hacking Suite Hacking Suite Hacking Suite System Shield > --- WEAPON (2) ------- Magnetic Acceleration Cannon Chainsword > --- INVENTORY (5) ---- Deep Structural Scanner Fusion Bomb Launcher Multitool Peak State ------------ > --- POWER ------------ Micro Fission Core > --- PROPULSION ------- Airjet Improved Gravmag System Cooled Aerolev Unit Cooled Aerolev Unit > --- UTILITY ---------- Advanced Visual Processing Unit Advanced Sensor Array Improved Signal Interpreter Improved Medium Armor Plating Hacking Suite System Shield System Shield Tech Extrapolator > --- WEAPON ----------- Magnetic Acceleration Cannon Chainsword > --- INVENTORY -------- Deep Structural Scanner Improved Sensor Array Hacking Suite Fusion Bomb Launcher Multitool [Rating: 67] Favorites ----------- Power Subdweller Power Source Engine Subdweller Power Source Power Core Nuclear Core Propulsion Improved Treads Treads Improved Treads Leg Improved Carbon-fiber Leg Wheel Compact Wheel Hover Unit Cooled Aerolev Unit Flight Unit Cesium-ion Thruster Utility Self-contained Transmogrifier Device Self-contained Transmogrifier Storage Large Storage Unit Processor Advanced Visual Processing Unit Hackware Hacking Suite Protection Scrap Shield Weapon Subdweller Beam Cannon Energy Gun High-powered Field Laser Energy Cannon Subdweller Beam Cannon Ballistic Gun Subdweller Machine Gun Ballistic Cannon Magnetic Acceleration Cannon Launcher Improved Concussive RPG Special Weapon Plasma Flamer Impact Weapon Mace Slashing Weapon Chainsword Piercing Weapon Heavy Pick Special Melee Weapon Datajack Build | -11 -10 -10 -8 -8 -6 -6 -6 ------- Run | Yrd Mat Sub Rec Scr Fac Was Fac Slots Evolved 8 | . . . . . 8 . . Power . | . . . . . . . . Propulsion 2 | . . . . . 2 . . Utility 6 | . . . . . 6 . . Weapon . | . . . . . . . . Parts Attached 64 | 4 6 15 1 9 18 2 9 Power 5 | . . 1 . 1 . 1 2 Engine 2 | . . 1 . . . . 1 Core 3 | . . . . 1 . 1 1 Reactor . | . . . . . . . . Propulsion 11 | 2 2 2 1 1 1 . 2 Treads 4 | 2 2 . . . . . . Leg . | . . . . . . . . Wheel 3 | . . 2 1 . . . . Hover 3 | . . . . . 1 . 2 Flight 1 | . . . . 1 . . . Utility 27 | 1 2 2 . 4 14 . 4 Device 9 | 1 1 . . 1 5 . 1 Storage 2 | . 1 1 . . . . . Processor 8 | . . . . 2 5 . 1 Hackware 5 | . . . . 1 2 . 2 Protection 3 | . . 1 . . 2 . . Artifact . | . . . . . . . . Weapon 21 | 1 2 10 . 3 3 1 1 Energy Gun 3 | 1 . 2 . . . . . Energy Cannon 4 | . 2 2 . . . . . Ballistic Gun 3 | . . 3 . . . . . Ballistic Cannon 3 | . . . . 2 1 . . Launcher 3 | . . 2 . . . 1 . Special Weapon 1 | . . . . . . . 1 Impact Weapon 2 | . . 1 . . 1 . . Slashing Weapon 1 | . . . . . 1 . . Piercing Weapon . | . . . . . . . . Special Melee Weapon 1 | . . . . 1 . . . Unidentified Prototypes 1 | . . . . 1 . . . Parts Lost 5 | . . 2 . . . . 3 Power 2 | . . 1 . . . . 1 Propulsion 2 | . . . . . . . 2 Utility 1 | . . 1 . . . . . Weapon . | . . . . . . . . Highest Loss Streak 3 | . . 1 . . . . 3 To Critical Strikes . | . . . . . . . . Average Backups 6 | 6 7 9 16 2 3 4 4 Power . | 1 . . 1 . . . . Propulsion 2 | 4 4 4 3 . . . . Utility 1 | . . . 4 . 1 2 1 Weapon 1 | 1 2 3 4 . . 1 1 Tool/Special . | . . . . . . . . Unused Backups 21 | . 3 7 3 7 . . 1 Power 2 | . . . . 2 . . . Propulsion 8 | . . 4 1 3 . . . Utility 7 | . 2 2 1 1 . . 1 Weapon 4 | . 1 1 1 1 . . . Tool/Special . | . . . . . . . . Average Slot Usage (%) 81 | . 100 90 85 68 85 93 93 Engine 7 | . 14 13 14 2 . . . Core 1 | . . . . 1 6 6 4 Treads 8 | . 28 22 . . . . . Leg 6 | . . . . 14 . . . Wheel 6 | . . 5 28 7 . . . Hover 4 | . . . . 3 19 20 21 Device 8 | . 14 5 . 11 7 6 5 Storage 4 | . 14 7 14 2 . . . Processor 4 | . . . . 3 19 20 17 Hackware 4 | . . . . 5 14 20 22 Protection 2 | . . 6 . . 3 6 6 Energy Gun 1 | . 1 1 . 2 . . . Energy Cannon 12 | . 26 19 28 7 . . . Ballistic Gun 1 | . . 5 . . . . . Ballistic Cannon 1 | . . . . 2 6 3 6 Peak Build Rating 67 | 7 11 33 33 34 56 62 67 Average Rating 23 | 6 10 14 26 21 51 57 59 On Entrance 26 | 6 7 11 33 14 29 56 59 Avg Prop Armor Cover (%) 19 | . . 5 4 24 4 . 2 Naked Turns . | . . . . . . . . Heaviest Build 221 | 14 33 221 221 41 26 30 33 Greatest Support 46 | 40 46 46 36 36 34 26 36 Greatest Overweight (x) 13 | . . 13 13 5 . 1 1 Average Overweight (x) . | . . 1 3 . . . . Largest Inventory Capacity 35 | 8 15 35 35 15 5 5 5 Average Capacity 9 | 8 10 13 28 6 5 5 5 Most Carried 35 | 6 8 35 35 15 5 5 5 Average Carried 6 | 5 7 10 27 3 3 4 4 Final Capacity 35 | 8 15 35 15 5 5 5 5 Final Carried 35 | 4 8 35 15 5 4 4 3 Transmogrified Parts 28 | . . . . 28 . . . Integrity Recovered 203 | . . . . 203 . . . Class Distribution -------------------- 64% | Mutant 15% | Subdweller-Mutant 9% | Hacker-Scout 7% | Hauler-Mutant Dominant Class ---------------- Mutant | -10/Materials Subdweller-Mutant | -10/Subcaves Hauler-Mutant | -8/Recycling Mutant | -8/Scraptown Hacker-Scout | -6/Factory Hacker-Scout | -6/Waste Hacker-Scout | -6/Factory Resources | -11 -10 -10 -8 -8 -6 -6 -6 ----------- Run | Yrd Mat Sub Rec Scr Fac Was Fac Matter Collected 1525 | 221 69 458 10 130 190 108 339 Remotely . | . . . . . . . . Salvage Created 2426 | 233 220 567 123 . 239 683 361 Parts 104 | 20 15 38 4 . 1 7 19 Haulers Intercepted 3 | . 1 . . . 2 . . Recyclers Shooed 4 | . 1 . . . 1 . 2 Parts Field Recycled . | . . . . . . . . Retrieved Matter . | . . . . . . . . Parts Self-Destructed 14 | . . 14 . . . . . Prevented . | . . . . . . . . Parts Restored . | . . . . . . . . Kills | -11 -10 -10 -8 -8 -6 -6 -6 ------- Run | Yrd Mat Sub Rec Scr Fac Was Fac Combat Hostiles Destroyed 35 | . 5 19 1 . . 3 7 Melee 3 | . . . . . . . 3 Guns 4 | . . 4 . . . . . Cannons 19 | . 5 9 1 . . 3 1 AOE 9 | . . 6 . . . . 3 Classes Destroyed 15 | 3 4 4 . . . 1 3 Worker 8 | 2 . . . . 2 . 4 Builder 1 | . . . . . . . 1 Tunneler 7 | 6 . . . . 1 . . Hauler 3 | . 1 . . . 2 . . Recycler 2 | 1 . . 1 . . . . Turret 2 | . . 2 . . . . . Watcher 3 | . 2 . . . . . 1 Swarmer 8 | . 3 5 . . . . . Grunt 7 | . 2 . . . . . 5 Sentry 2 | . . 1 1 . . . . Programmer 2 | . . . . . . . 2 Compactor 3 | . . . . . . 3 . Artisan 1 | . . 1 . . . . . Subdweller 13 | . . 13 . . . . . Surgeon 1 | . . . . . . . 1 Best Kill Streak 6 | 4 4 6 2 . 1 3 4 Combat Bots Only 4 | . 3 4 1 . . 3 3 Max Kills in Single Turn 2 | 1 1 2 1 . 1 1 2 Gunslinging . | . . . . . . . . Exploded 2 | . . 2 . . . . 2 Melee 1 | . . . . . . . 1 Uniques/NPCs Destroyed . | . . . . . . . . Combat | -11 -10 -10 -8 -8 -6 -6 -6 -------- Run | Yrd Mat Sub Rec Scr Fac Was Fac Hostile Shots Fired 199 | . 21 73 6 . 46 . 53 Missed 75 | . 4 23 2 . 24 . 22 Hits 124 | . 17 50 4 . 22 . 31 Projectile 124 | . 17 50 4 . 22 . 31 Critical Strikes 7 | . . 4 1 . . . 2 Part Disruptions 2 | . . . . . 2 . . Damage Taken 1920 | . 126 941 61 . 242 . 550 Core 192 | . 4 127 18 . . . 43 Absorbed by Shields 132 | . 52 80 . . . . . Regen/Repaired (Parts) 253 | . . . . . . 99 154 Core Remaining (%) 70 | 100 . . . 40 . . . Volleys Fired 159 | 25 16 66 5 . . 18 29 Largest 2 | 2 2 2 2 . . 1 1 Hottest 160 | 90 120 160 160 . . 44 52 Shots Fired 248 | 50 32 109 10 . . 18 29 Gun 90 | 50 . 40 . . . . . Cannon 144 | . 32 58 10 . . 18 26 Launcher 14 | . . 11 . . . . 3 Special . | . . . . . . . . Kinetic 74 | . . 30 . . . 18 26 Thermal 161 | 45 32 74 10 . . . . Explosive 8 | . . 5 . . . . 3 Electromagnetic 5 | 5 . . . . . . . Robot Hit Streak 28 | 8 4 28 3 . . 6 16 Robot Miss Streak 4 | 3 3 2 4 . . 1 3 Penetration Max . | . . . . . . . . Secondary Targets . | . . . . . . . . Shots Hit Robots 182 | 29 16 60 4 9 15 14 35 Core Hits 77 | 10 9 32 1 . 1 5 19 Critical Kills 2 | . . 2 . . . . . Critical Parts Destroyed 3 | . . . . . 3 . . Critical Strikes 10 | 3 . 2 . . 3 1 1 Burn 3 | 3 . . . . . . . Destroy 2 | . . 2 . . . . . Blast 1 | . . . . . . 1 . Smash 3 | . . . . . 3 . . Sever 1 | . . . . . . . 1 Melee Attacks 96 | . . 22 . 9 29 . 36 Impact 41 | . . 22 . . 19 . . Slashing 45 | . . . . . 9 . 36 Piercing . | . . . . . . . . Sneak Attacks 21 | . . . . 9 7 . 5 Combat Hostiles . | . . . . . . . . Follow-up Attacks . | . . . . . . . . Damage Inflicted 6359 | 354 293 2118 162 . 728 553 2151 Guns 788 | 354 . 434 . . . . . Cannons 2310 | . 293 680 162 . . 553 622 Explosions 1806 | . . 1004 . . . . 802 Melee 1455 | . . . . . 728 . 727 Ramming . | . . . . . . . . Kinetic 2005 | . . 830 . . . 553 622 Thermal 1654 | 354 293 845 162 . . . . Explosive 1245 | . . 443 . . . . 802 Electromagnetic . | . . . . . . . . Impact 389 | . . . . . 389 . . Slashing 1066 | . . . . . 339 . 727 Piercing . | . . . . . . . . Highest Corruption 2 | . . . . . . . 2 Average Corruption 1 | . . . . . . . 1 Corruption Purged . | . . . . . . . . Corruption Blocked . | . . . . . . . . Effects 7 | . . . . . . . 7 Message Errors 2 | . . . . . . . 2 Matter Fused 1 | . . . . . . . 1 Energy Discharges 2 | . . . . . . . 2 Data Loss (minor) 1 | . . . . . . . 1 Data Loss (major) 1 | . . . . . . . 1 Overload Shots . | . . . . . . . . Overflow Damage 596 | . . 29 23 . 293 . 251 Projectiles 40 | . . . 23 . . . 17 Explosions 80 | . . 29 . . . . 51 Melee 476 | . . . . . 293 . 183 Knockbacks 6 | . . . . . 4 . 2 Impact 4 | . . . . . 4 . . Kinetic 2 | . . . . . . . 2 Secondary . | . . . . . . . . Self-Inflicted Damage 64 | . . 64 . . . . . Shots 3 | . . 3 . . . . . Rammed . | . . . . . . . . Targets Rammed . | . . . . . . . . Kicked . | . . . . . . . . Crushed . | . . . . . . . . Highest Temperature 465 | 270 315 388 465 . . . 9 Average Temperature 115 | 119 123 71 237 . . . 5 Received Heat Transfer 627 | . 38 309 45 . 58 . 177 Effects 2 | . . 1 1 . . . . Energy Bleed 2 | . . 1 1 . . . . Siege Activations . | . . . . . . . . Martial Activations . | . . . . . . . . Shielding Activations . | . . . . . . . . Robots Disrupted . | . . . . . . . . Combat Hostiles . | . . . . . . . . Robots Corrupted 3 | . . . . . 3 . . Combat Hostiles . | . . . . . . . . Parts Fried 4 | . . . . . 4 . . Impact Corruptions 11 | . . . . . 11 . . Robots Melted . | . . . . . . . . Combat Hostiles . | . . . . . . . . Parts Melted 8 | 3 3 1 1 . . . . Heat Transferred 3497 | 1188 629 1458 222 . . . . Parts Sabotaged . | . . . . . . . . Parts Stolen . | . . . . . . . . Parts Stripped . | . . . . . . . . Power Chain Reactions . | . . . . . . . . Alert | -11 -10 -10 -8 -8 -6 -6 -6 ------- Run | Yrd Mat Sub Rec Scr Fac Was Fac Maximum Alert Level 1 | . . . . . . . 1 Low Security (%) 94 | 100 100 . 100 . 100 100 81 Level 1 5 | . . . . . . . 18 Level 2 . | . . . . . . . . Level 3 . | . . . . . . . . Level 4 . | . . . . . . . . Level 5 . | . . . . . . . . High Security . | . . . . . . . . Max Security . | . . . . . . . . Peak Influence 279 | 15 67 . 41 . 119 26 279 Initial 26 | . . . 25 . . 26 . Average 56 | 2 18 . 12 . 56 3 140 Influence Increases 1245 | 45 141 160 137 . 245 17 500 Destroy 0b10 Robot/C 500 | . 100 160 20 . . . 220 Destroy 0b10 Robot/NC 120 | 45 15 . 5 . 25 . 30 Destroy Leader 82 | . 26 . . . 4 . 52 Allied During Kill 76 | . . . . . . . 76 Successful Hack 37 | . . . 19 . . . 18 Select Force Hacks 90 | . . . 90 . . . . Disable Machine 45 | . . . . . 30 . 15 Destroy Structure 100 | . . . 3 . 6 17 74 Partial Spotted 15 | . . . . . 15 . . Lose Combat Pursuer 180 | . . . . . 165 . 15 Influence Decreases 1183 | 45 141 107 190 . 170 92 438 Entered New Map 77 | . . . 28 . . 49 . Time Decay 979 | 45 141 97 162 . 160 26 348 Lost Part 40 | . . 10 . . . . 30 Lost Ally 87 | . . . . . 10 17 60 Squads Dispatched 15 | . . . . . 7 . 8 Investigation 9 | . . . . . 5 . 4 Extermination 4 | . . . . . 2 . 2 Reinforcement 2 | . . . . . . . 2 Assault . | . . . . . . . . Garrison . | . . . . . . . . Intercept . | . . . . . . . . Searches Triggered . | . . . . . . . . Construction Impeded 1 | . . . . . . . 1 Haulers Reinforced . | . . . . . . . . Active Scanning Responses . | . . . . . . . . Cargo Convoy Interrupts . | . . . . . . . . Stealth | -11 -10 -10 -8 -8 -6 -6 -6 --------- Run | Yrd Mat Sub Rec Scr Fac Was Fac Distress Signals 2 | . 1 . . . . . 1 Communications Jammed . | . . . . . . . . Distress Signals . | . . . . . . . . Times Spotted 69 | . 7 22 1 . 18 7 14 Peak Tracking Total 7 | . 4 6 1 . 7 6 4 Tactical Retreats 8 | . . . . . 6 1 1 ECM-based Alert Blocks 4 | . . . . . 4 . . Traps | -11 -10 -10 -8 -8 -6 -6 -6 ------- Run | Yrd Mat Sub Rec Scr Fac Was Fac Traps Triggered 10 | . . 1 . . 5 . 4 Indirectly . | . . . . . . . . Trap Hack Attempts . | . . . . . . . . Triggered . | . . . . . . . . Disarmed . | . . . . . . . . Reprogrammed . | . . . . . . . . Reused . | . . . . . . . . Traps Extracted . | . . . . . . . . Installed . | . . . . . . . . Triggered . | . . . . . . . . Machines | -11 -10 -10 -8 -8 -6 -6 -6 ---------- Run | Yrd Mat Sub Rec Scr Fac Was Fac Machines Disabled 7 | . . 4 . . 2 . 1 Max in Single Turn 2 | . . 2 . . 1 . 1 Garrison Access 1 | . . . . . . . 1 Machines Repaired 1 | . . . . . . . 1 Machines Dismantled . | . . . . . . . . Machines Sabotaged . | . . . . . . . . Overloaded Fab Kills . | . . . . . . . . Hacking | -11 -10 -10 -8 -8 -6 -6 -6 --------- Run | Yrd Mat Sub Rec Scr Fac Was Fac Machines Accessed 29 | . . 3 5 1 8 . 12 Terminals 14 | . . . 2 . 4 . 8 Fabricators 1 | . . . . . . . 1 Repair Stations 1 | . . . . . . . 1 Recycling Units 8 | . . . 3 . 4 . 1 Scanalyzers . | . . . . . . . . Garrison Access 1 | . . . . . . . 1 Total Hacks 78 | . . 7 7 15 14 . 35 Successful 48 | . . 7 5 15 8 . 13 Failed 30 | . . . 2 . 6 . 22 Catastrophic 6 | . . . . . 2 . 4 Database Lockouts . | . . . . . . . . Manual 40 | . . . 7 . 14 . 19 Terminals 32 | . . . 4 . 7 . 21 Fabricators 7 | . . . . . . . 7 Repair Stations 4 | . . . . . . . 4 Recycling Units 11 | . . . 3 . 7 . 1 Scanalyzers . | . . . . . . . . Garrison Access 2 | . . . . . . . 2 Terminal Hacks 25 | . . 7 . 15 . . 3 Record 20 | . . 5 . 15 . . . Part Schematic 1 | . . . . . . . 1 Open Door 1 | . . 1 . . . . . Terminal Index 1 | . . . . . . . 1 Registered Components 1 | . . . . . . . 1 Release Object 1 | . . 1 . . . . . Fabricator Hacks 1 | . . . . . . . 1 Network Status 1 | . . . . . . . 1 Repair Station Hacks 2 | . . . . . . . 2 Scan Component 1 | . . . . . . . 1 Repair 1 | . . . . . . . 1 Recycling Unit Hacks . | . . . . . . . . Scanalyzer . | . . . . . . . . Garrison Access Hacks 1 | . . . . . . . 1 Seal Access 1 | . . . . . . . 1 Unauthorized Hacks 19 | . . . 5 . 8 . 6 Terminals 10 | . . . 2 . 4 . 4 Assimilate 2 | . . . . . 1 . 1 Botnet 5 | . . . 1 . 2 . 2 Operators 2 | . . . . . 1 . 1 Skim 1 | . . . 1 . . . . Fabricators 1 | . . . . . . . 1 Haulers 1 | . . . . . . . 1 Repair Stations . | . . . . . . . . Recycling Units 8 | . . . 3 . 4 . 1 Tunnel 3 | . . . 3 . . . . Fedlink 5 | . . . . . 4 . 1 Scanalyzers . | . . . . . . . . Garrison Access . | . . . . . . . . Data Cores Recovered . | . . . . . . . . Used . | . . . . . . . . Hacking Detections 15 | . . . 2 . 5 . 8 Full Trace Events 3 | . . . . . 1 . 2 Feedback Events . | . . . . . . . . Feedback Blocked . | . . . . . . . . Robot Schematics Acquired . | . . . . . . . . Robots Built . | . . . . . . . . Authchips . | . . . . . . . . Time . | . . . . . . . . Total Robot Build Rating . | . . . . . . . . Part Schematics Acquired 19 | . . . . 4 5 4 6 Parts Built . | . . . . . . . . Authchips . | . . . . . . . . Time . | . . . . . . . . Total Part Build Rating . | . . . . . . . . Part Studies Acquired . | . . . . . . . . Parts Repaired 1 | . . . . . . . 1 Time 25 | . . . . . . . 25 Parts Recycled . | . . . . . . . . Recycled Matter . | . . . . . . . . Retrieved Matter . | . . . . . . . . Retrieved Components . | . . . . . . . . Parts Scanalyzed . | . . . . . . . . Part Schematics Acquired . | . . . . . . . . Parts Damaged . | . . . . . . . . Bothacking | -11 -10 -10 -8 -8 -6 -6 -6 ------------ Run | Yrd Mat Sub Rec Scr Fac Was Fac Used RIF Installer . | . . . . . . . . Robots Hacked 10 | . . . . 9 1 . . Non-combat 4 | . . . . 3 1 . . Combat 6 | . . . . 6 . . . Robot Hacks Applied 10 | . . . . 9 1 . . parse_system 9 | . . . . 9 . . . find_chute 1 | . . . . . 1 . . Relay Couplers Released . | . . . . . . . . Fabnet Peak Effective % . | . . . . . . . . Robots Rewired . | . . . . . . . . Allies Hacked . | . . . . . . . . Hacks Repelled . | . . . . . . . . Allies | -11 -10 -10 -8 -8 -6 -6 -6 -------- Run | Yrd Mat Sub Rec Scr Fac Was Fac Total Allies 20 | . . . . . 1 19 . Largest Group 19 | . . . . . . 19 9 Highest-Rated Group 684 | . . . . . . 684 376 Highest-Rated Ally 50 | . . . . . . 50 46 Initial UFD Resources 42 | . . . . . 24 42 42 Total Orders . | . . . . . . . . Ally Attacks 108 | . . . . . . 85 23 Total Damage 3619 | . . . . . . 3097 522 Kills 10 | . . . . . . 6 4 Allies Corrupted 1 | . . . . . 1 . . Allies Melted . | . . . . . . . . Intel | -11 -10 -10 -8 -8 -6 -6 -6 ------- Run | Yrd Mat Sub Rec Scr Fac Was Fac Active Infowar (turns) 2357 | 7 58 . . 795 351 305 841 Optics 2292 | . . . . 795 351 305 841 Sensors 1247 | . . . . . 159 305 783 Seismic 65 | 7 58 . . . . . . Machine Analysis 119 | . . . . . 119 . . Triangulation 168 | . . . . . 168 . . ECM 8 | . . . . . 8 . . Robot Analysis Total . | . . . . . . . . Derelict Logs Recovered 7 | . . 2 . 5 . . . Drone Launches . | . . . . . . . . Drone Recoveries . | . . . . . . . . Exploration | -11 -10 -10 -8 -8 -6 -6 -6 ------------- Run | Yrd Mat Sub Rec Scr Fac Was Fac Turns Passed 11972 | 248 426 4016 539 5227 370 305 841 Spaces Moved 7956 | 16 189 2181 326 3173 560 321 1190 Core 954 | . . . . 954 . . . Treads 1847 | 2 189 1656 . . . . . Legs 26 | 14 . . . 12 . . . Wheels 2009 | . . 525 326 1158 . . . Hover 2936 | . . . . 865 560 321 1190 Flight 184 | . . . . 184 . . . Fastest Speed 35 | 120 160 115 105 35 36 45 43 Average Speed 105 | 125 160 160 151 96 44 62 47 Slowest Speed 300 | 160 160 295 295 300 46 98 106 Overloaded Moves 78 | . . . . . 78 . . Propulsion Burnouts . | . . . . . . . . Robots Hopped . | . . . . . . . . Potential Cave-ins . | . . . . . . . . Cave-ins Triggered . | . . . . . . . . Exploration Rate (%) 54 | 3 44 95 50 88 27 91 36 Regions Visited 7 Branch Regions 3 Pre-discovered Areas 9 | . . 1 3 4 1 . . Known Exits Taken . | . . . . . . . . Unknown Exits Taken 5 | 1 1 1 1 1 . . . Scrap Searched 12 | . . 6 . 6 . . . Spaces Dug 34 | . . 10 . . 6 . 18 Terrain Destroyed 172 | . . 87 3 . 6 . 76 Melee 30 | . . 6 . . 6 . 18 Projectile 12 | . . 6 3 . . . 3 AOE 130 | . . 75 . . . . 55 Terrain Rammed . | . . . . . . . . Walls Destroyed . | . . . . . . . . Machines Disabled . | . . . . . . . . Actions | -11 -10 -10 -8 -8 -6 -6 -6 --------- Run | Yrd Mat Sub Rec Scr Fac Was Fac Total 11138 | 194 280 2547 363 5341 630 404 1379 Wait 2693 | 148 62 202 11 2105 7 61 97 Move 7950 | 15 188 2180 325 3172 560 320 1190 Hop . | . . . . . . . . Pick Up 66 | . 4 28 15 13 2 1 3 Fast Attach 38 | 1 1 11 1 10 10 . 4 Attach 9 | 2 . 1 . 1 3 . 2 Detach 4 | . . 3 . . . . 1 Swap 40 | 1 5 12 1 1 6 3 11 Drop 68 | 2 4 17 5 30 6 1 3 Fire 159 | 25 16 66 5 . . 18 29 Melee 96 | . . 22 . 9 29 . 36 Ram . | . . . . . . . . Kick . | . . . . . . . . Crush . | . . . . . . . . Escape Stasis 7 | . . . . . 7 . . Rewire . | . . . . . . . . Trap . | . . . . . . . . Miscellaneous 8 | . . 5 . . . . 3 Route ------- -11/Scrapyard -10/Materials (discovered 2 exits: [*Mat] / *Sub) -10/Subcaves (discovered 3 exits: [*Mat x2] / *Rec) -8/Recycling (discovered 2 exits: *Fac / *Scr) -8/Scraptown (discovered 2 exits: *Fac x2) -6/Factory (discovered 8 exits: *Fac x4 / *Low x2 / Ext x2) -6/Waste -6/Factory (discovered 5 exits: *Fac x3 / *Low / *Ext) History --------- Turn | Location | Event 18 | -11/Scrapyard | Discovered new exit (range 3) 249 | -11/Scrapyard | Entered Materials 332 | -10/Materials | Build established: Mutant 600 | -10/Materials | Discovered new exit (range 12) 656 | -10/Materials | Discovered new exit (range 6) 675 | -10/Materials | Entered Subcaves 706 | -10/Subcaves | Shifting Twisted Machinery released Sub. Machine Gun 812 | -10/Subcaves | Visited 4L-MR0's lab 825 | -10/Subcaves | Found Prototype Device 980 | -10/Subcaves | Learned location of Zion (-7) 980 | -10/Subcaves | Met a Zionite searching for "candidates" 1204 | -10/Subcaves | Shifting Twisted Machinery released Piercing Trap 1290 | -10/Subcaves | Learned Materials interactive machine intel 1374 | -10/Subcaves | A swath of the cavern ceiling suddenly collapsed 1561 | -10/Subcaves | A swath of the cavern ceiling suddenly collapsed 2200 | -10/Subcaves | Discovered new exit (range 10) 2241 | -10/Subcaves | Learned Materials stockpile data 2454 | -10/Subcaves | Discovered new exit (range 8) 2510 | -10/Subcaves | Build established: Subdweller-Mutant 2533 | -10/Subcaves | Visited Clippyterm 2538 | -10/Subcaves | Learned Factory emergency access door positions 2837 | -10/Subcaves | Shifting Twisted Machinery released Battle Rifle 2962 | -10/Subcaves | Disturbed a concealed Subdweller 3546 | -10/Subcaves | Discovered new exit (range 13) 3548 | -10/Subcaves | Ambushed by Subdweller buried in earth 4056 | -10/Subcaves | Disturbed a concealed Subdweller 4056 | -10/Subcaves | Disturbed a concealed Subdweller 4057 | -10/Subcaves | Disturbed a concealed Subdweller 4078 | -10/Subcaves | Core integrity fell below 50% 4389 | -10/Subcaves | Build established: Hauler-Mutant 4509 | -10/Subcaves | Found SUBCON Basin 4691 | -10/Subcaves | Entered Recycling 4996 | -8/Recycling | Scanned before Scraplab entrance 5023 | -8/Recycling | Entered Scraplab 5143 | -8/Recycling | Discovered new exit (range 15) 5227 | -8/Recycling | Discovered new exit (range 2) 5230 | -8/Recycling | Entered Scraptown 5336 | -8/Scraptown | Build established: Mutant 5428 | -8/Scraptown | Discovered new exit (range 11) 5480 | -8/Scraptown | Scanned Subdweller tech in exchange for log data 5482 | -8/Scraptown | Learned Research trap positions 5483 | -8/Scraptown | Learned 8 Factory zone layouts 5484 | -8/Scraptown | Learned location of Armory (-4) 5486 | -8/Scraptown | Learned 12 Research zone layouts 5487 | -8/Scraptown | Learned location of 2 exits from Upper Caves 5519 | -8/Scraptown | Visited The Evicted 5530 | -8/Scraptown | Visited SPCMW 5686 | -8/Scraptown | Visited Scrapoid Research Area 5728 | -8/Scraptown | Visited Assassins FH 5735 | -8/Scraptown | Visited Fellowship of the Rings 5752 | -8/Scraptown | Visited UFD Registry 5752 | -8/Scraptown | Registered with UFD as "Zerotalker" 5762 | -8/Scraptown | Visited Cave Peace 5792 | -8/Scraptown | Visited Scrap Suit Storage 5811 | -8/Scraptown | Visited Analyses Database 5831 | -8/Scraptown | Visited Observation Area 5869 | -8/Scraptown | Delivered Scrap Shield to a Scientist 5922 | -8/Scraptown | Visited Science Guys 5944 | -8/Scraptown | Visited DA-N13 Charitable Foundation 5949 | -8/Scraptown | Found DCF Scrap (25 items) 5975 | -8/Scraptown | Visited Junk Repository 6004 | -8/Scraptown | Visited A0-MCA Data Center 6011 | -8/Scraptown | Given a D rating by A0-MCA 6035 | -8/Scraptown | Visited Research Penetration Think Tank 6064 | -8/Scraptown | Visited Cartography Club 6171 | -8/Scraptown | Learned location of Cetus (-6) 6171 | -8/Scraptown | Learned location of Hub_04(d) (-6) 6171 | -8/Scraptown | Learned 20 Factory zone layouts 6171 | -8/Scraptown | Learned 24 Factory zone layouts 6171 | -8/Scraptown | Learned 20 Lower Caves zone layouts 6171 | -8/Scraptown | Learned 24 Upper Caves zone layouts 6171 | -8/Scraptown | Learned 4 Hub_04(d) zone layouts 6171 | -8/Scraptown | Learned Storage emergency access door positions 6171 | -8/Scraptown | Learned location of 1 exit from Factory 6171 | -8/Scraptown | Learned location of 3 exits from Proximity Caves 6175 | -8/Scraptown | Found Deep Structural Scanner 6603 | -8/Scraptown | Identified Sfc. Transmogrifier 10270 | -8/Scraptown | Tech Extrapolator generated special schematic: Machine Rigger 10431 | -8/Scraptown | Met Optimus 10431 | -8/Scraptown | Accepted into 0bPrime 10456 | -8/Scraptown | Discovered new exit (range 3) 10457 | -8/Scraptown | Entered Factory 10457 | -6/Factory | Evolved 8 slots: Propulsion x2, Utility x6 10458 | -6/Factory | Identified exit to Lower Caves 10458 | -6/Factory | Identified exit to Extension 10460 | -6/Factory | Identified exit to Factory 10510 | -6/Factory | Loaded intel: 8 recycling unit locations 10512 | -6/Factory | Assembled infested ambush trap array 10556 | -6/Factory | Spotted B-75 Beast 10567 | -6/Factory | Learned location of Protoforge (-2) 10605 | -6/Factory | Allied Derelicts emerged from ambush trap array 10640 | -6/Factory | Tech Extrapolator generated special schematic: Deep Structural Scanner 10827 | -6/Factory | Sucked down chute 10827 | -6/Factory | Entered Waste 10844 | -6/Waste | Spotted C-40 Crusher 10845 | -6/Waste | Spotted C-40 Crusher 10876 | -6/Waste | Spotted C-40 Crusher 10877 | -6/Waste | Spotted C-40 Crusher 10900 | -6/Waste | Spotted C-40 Crusher 10917 | -6/Waste | Spotted C-40 Crusher 10926 | -6/Waste | Discovered new exit (range 19) 10936 | -6/Waste | Warlord forces began an assault 10965 | -6/Waste | Build established: Hacker-Scout 10965 | -6/Waste | Allies destroyed C-40 Crusher 10966 | -6/Waste | Destroyed C-40 Crusher 10972 | -6/Waste | Destroyed C-40 Crusher 10972 | -6/Waste | Allies destroyed C-40 Crusher 10978 | -6/Waste | Allies destroyed C-40 Crusher 10980 | -6/Waste | Destroyed C-40 Crusher 10992 | -6/Waste | Lost 8 allies 10996 | -6/Waste | Found Fusion Bomb Launcher 11108 | -6/Waste | Identified exit to Factory 11132 | -6/Waste | Entered Factory 11132 | -6/Factory | Accompanied by 9 allies 11143 | -6/Factory | Discovered exit to Extension (range 18) 11235 | -6/Factory | Loaded intel: 8 recycling unit locations 11275 | -6/Factory | Discovered exit to Factory (range 13) 11295 | -6/Factory | Discovered exit to Factory (range 8) 11427 | -6/Factory | Lost 4 allies 11526 | -6/Factory | Lost 4 allies 11573 | -6/Factory | Lost 3 parts (1p2n) 11591 | -6/Factory | Tech Extrapolator generated special schematic: Energy Deflector 11737 | -6/Factory | Discovered exit to Factory (range 5) 11929 | -6/Factory | Repaired Adv. Sensor Array 11973 | -6/Factory | Self-destructed Last Messages --------------- Repairing Adv. Sensor Array... ETC: 25 11904_ ALERT: Suspicious activity at Repair Station F003. Dispatching Investigation squad. 11923_ System corrupted: Substantial component data lost. 11929_ Repair station completes Adv. Sensor Array repairs. 11929_ Acquired Adv. Sensor Array. 11951_ Sneak attack on U-05 Engineer. 11951_ Destroyed Welding Torch. 11951_ Destroyed Wheel. 11951_ ALERT: Construction progress impeded, dispatching reinforcements to local area. 11965_ Triggered Blade Trap. 11965_ Massive razor-sharp blades shoot up from within the floor. 11965_ Mic. Nuclear Core severed. 11965_ Cld. Aerolev Unit severed. 11965_ Acquired Mic. Nuclear Core. Map ----- +----------------------------------------------------+ | ?????????# # " "" """ # #????? | | ?????????# # "R"" """ # #????? | | ?????????# # """ """ # #????? | | ?????????# # + #????? | | ?????????# ####/#########+####?? | | ?????????# #??# #?????# #?? | | ?????????# ##+##### #?????# #?? | | ?????????# # # #?????# #?? | | ?????????# + !] # #?????# ### | | ?????????# # ]] # #?????# + # | | # ######## # # #?????# ### | | # # ! # #?????#####+##?? | | # # #?????????# #??? | | ######## #?????????# #??? | | ###+##### #?????????# #??? | | # ## #?????????# #??? | | ? #########+#?# """ ## ########### #??? | | ???????????????# """ + #??? | | ???????????????# """ ######## ^ ####??? | | ???????????????# #??????# """"""" #?????? | | ???????????????# """ #??????# """"""" !! #?????? | | ???????????????# """ !#??????# """"""" =! #?????# | | ???????????????# """ ######## """"""" ! ####### | | ???????????????# + | | ???????????????# """ ## | | ???????????????# """ ## @ | | ???????????????# """ ## | | ???????????????# ## ######## | | ???????????????##+###### ## # | | ????????????????# #????# ## ####### | | ????????????????# #????# ## > #?????# | | ????????????????# ####?# ## #?????# | | ????????????????# #T ### #?? #?????# | | ????????????????# #####+######## # | | ????????????????# # | | ????????????????# ######"#+######+## | | ????????????????# #????## [ | | ????????????????# #?????# | | ????????????????############ #?????# | | ???????????????????????????# #?????# "" | | ???????????????????????????# #?????# "" | | ???????????????????????????######?????# ""T"" "" | | ??????????????????????????????????????# """"" | | ??????????????????????????????????????# | | ??????????????????????????????????????############ | | | | | | | | | | | +----------------------------------------------------+ Best States ------------- Heat Dissipation 37 Energy Generation 15 Energy Capacity 250 Matter Stores 300 Matter Capacity 300 Sight Range 22 Robot Scan Range 16 Terrain Scan Density 10 ECM Strength 1 Armor Coverage 800 Resistance: TH 25 Evasion (%) 63 Targeting Accuracy 6 Target Analysis 6 Recoil Reduction 2 Offensive Hacking 30 Defensive Hacking 20 Item Schematics ----------------- Mak. Coolant Network | -8/Scraptown | Extrapolated Machine Rigger | -8/Scraptown | Extrapolated Spk. Treads | -8/Scraptown | Extrapolated Mak. Power Source | -8/Scraptown | Extrapolated Mak. Leg | -6/Factory | Extrapolated Spk. Medium Treads | -6/Factory | Extrapolated Deep Structural Scanner | -6/Factory | Extrapolated 0b10 Decoder Chip [Skirmisher] | -6/Factory | Extrapolated Mak. Targeting Computer | -6/Factory | Extrapolated Spk. Heavy Treads | -6/Waste | Extrapolated Mak. Power Shielding | -6/Waste | Extrapolated Mak. Propulsion Shielding | -6/Waste | Extrapolated Mak. Light Armor Plating | -6/Waste | Extrapolated Mak. Terrain Scanner | -6/Factory | Extrapolated Mak. Medium Armor Plating | -6/Factory | Extrapolated Mak. Kinetic Plating | -6/Factory | Extrapolated Mak. Ablative Armor | -6/Factory | Extrapolated Energy Deflector | -6/Factory | Extrapolated Imp. Antigrav System | -6/Factory | Hacked Robot Schematics ------------------ None Fabricated ------------ Nothing Repaired ---------- Adv. Sensor Array | 16% | -6/Factory Studied --------- None Alien Tech Used ----------------- None Achievements -------------- None Challenges ------------ None Game ------ Seed MachineFocalExtrapolator Manual? 0 Play Time 01:02:21 Cumulative 644.2 hours Start 2026.08.21 @ 03:05:35 End 2026.08.21 @ 04:14:17 Sessions 1 Manual Loads 0 Difficulty Rogue Special Mode None Game No. 570 Rogue 534 Adventurer 36 Explorer 0 Win Type - Total 8 Types 2/2/0/1/1/0/0/2/0/0 Lore% 85 Gallery% 74 Achievement% 68 Wizard Run 0 Options --------- Layout 2 ASCII 0 Keyboard 0 Movement Numpad Keybinds 0 Fullscreen 1 Font 48/Smallcaps Map View 50x44 Zoom Use 0% Tactical HUD 1 Map Filters NONE Filters NONE Steam 1 RUN: 662f46c2-4e16-4728-8d2d-76e8b14752dc